[Event "Srdja Dragasevic Memorial-A 2024"]
[Site "Cetinje"]
[Date "2024.06.23"]
[Round "1.1"]
[White "Vujovic, Savo"]
[Black "Karthik Venkataraman"]
[Result "0-1"]
[ECO "B12"]
[WhiteElo "2230"]
[BlackElo "2590"]
[Annotator "RC"]
[PlyCount "132"]
[EventDate "2024.06.23"]
[EventType "swiss"]
[EventCountry "MNE"]
[SourceTitle "playchess.com"]
[Source "ChessBase"]
[SourceQuality "1"]
[TimeControl "40/5400+30:1800+30"]

1. e4 {[%emt 0:01:44]} c6 {[%emt 0:00:09]} 2. d4 {[%emt 0:00:16]} d5 {[%emt 0:00:08]} 3. e5 {[%emt 0:00:10]} Bf5 {[%emt 0:00:06]} 4. h4 {[%emt 0:00:11]} h5 {[%emt 0:00:08]} 5. Bg5 {[%emt 0:00:18]} Qb6 {[%emt 0:00:09]} 6. Bd3 {[%emt 0:00:19]} Qxd4 {[%emt 0:00:08]} 7. Nf3 {[%emt 0:00:07]} Qg4 {[%emt 0:00:03]} 8. Bxf5 {[%emt 0:00:11]} Qxf5 {[%emt 0:00:06]} 9. O-O {[%emt 0:00:06]} f6 {[%emt 0:00:04]} 10. c4 {[%emt 0:00:35]} fxg5 {[%emt 0:00:04]} 11. Qb3 {[%emt 0:05:09]} Nd7 {[%emt 0:35:59]} 12. Qxb7 {[%emt 0:05:19]} Rb8 {[%emt 0:00:09]} 13. Qxc6 {[%emt 0:11:40]} Rh6 {[%emt 0:00:14]} 14. Qxd5 {[%emt 0:05:44]} g4 {[%emt 0:01:59]} 15. Ng5 {[%emt 0:07:16]} e6 {[%emt 0:00:13]} 16. Qd1 {[%emt 0:16:02]} Rxb2 {[%emt 0:02:26]} 17. Nc3 {[%emt 0:00:36]} Qc2 {[%emt 0:00:31]} 18. Qd4 {[%emt 0:06:00]} Bc5 {[%emt 0:03:40]} 19. Qf4 {[%emt 0:00:05]} Qf5 {[%emt 0:00:14]} 20. Qg3 {[%emt 0:12:11]} Bd4 {[%emt 0:01:35]} 21. Nce4 {[%emt 0:00:50]} Qxe5 {[%emt 0:06:13]} 22. Qa3 {[%emt 0:02:39]} Re2 {[%emt 0:02:13]} 23. Nd6+ {[%emt 0:05:26]} Kf8 {[%emt 0:00:08]} 24. Ndf7+ {[%emt 0:02:41]} Qc5 {[%emt 0:00:12]} 25. Qd3 {[%emt 0:00:32]} Rf6 {[%emt 0:28:39]} 26. Qxe2 {[%emt 0:01:57]} e5 {[%emt 0:00:13]} 27. Qe4 {[%emt 0:08:13]} Qe7 {[%emt 0:06:08]} 28. Nh8 {[%emt 0:02:35]} Qe8 {[%emt 0:04:34]} 29. Nh7+ {[%emt 0:01:57]} Ke7 {[%emt 0:00:01]} 30. Rad1 {[%emt 0:02:10]} Rd6 {[%emt 0:00:31]} 31. Ng5 {[%emt 0:01:12]} Ngf6 {[%emt 0:04:40]} 32. Ng6+ {[%emt 0:00:16]} Kd8 {[%emt 0:00:01]} 33. Qa8+ {[%emt 0:00:32]} Kc7 {[%emt 0:00:01]} 34. Qxe8 Nxe8 {[%emt 0:00:01]} 35. Ne7 {[%emt 0:00:41]} g3 {[%emt 0:00:05]} 36. Ne4 {[%emt 0:01:23]} gxf2+ {[%emt 0:00:10]} 37. Kh1 {[%emt 0:00:31]} Ra6 {[%emt 0:03:39]} 38. Nd5+ {[%emt 0:00:35]} Kd8 {[%emt 0:00:30]} 39. Rd2 {[%emt 0:00:17]} Nd6 {[%emt 0:00:21]} 40. Nxd6 {[%emt 0:00:00]} Rxd6 {[%emt 0:00:00]} 41. Nc3 {[%emt 0:13:34]} Rc6 {[%emt 0:06:23]} 42. Ne4 {[%emt 0:06:39]} Rxc4 {[%emt 0:00:10]} 43. Nxf2 {[%emt 0:00:08]} Be3 {[%emt 0:03:08]} 44. Re2 {[%emt 0:03:09]} Rxh4+ {[%emt 0:01:05]} 45. Kg1 {[%emt 0:00:16]} Bb6 {[%emt 0:02:11]} 46. g3 {[%emt 0:00:12]} Ra4 {[%emt 0:00:01]} 47. Kg2 {[%emt 0:00:44]} Ke7 {[%emt 0:05:06]} 48. Nd3 {[%emt 0:01:07]} e4 {[%emt 0:02:16]} 49. Nf4 {[%emt 0:01:36]} Nf6 {[%emt 0:00:01]} 50. Rd1 {[%emt 0:02:58]} Ra5 {[%emt 0:00:02]} 51. Nd3 {[%emt 0:01:14]} g5 {[%emt 0:01:02]} 52. Nf2 {[%emt 0:00:39]} e3 {[%emt 0:00:32]} 53. Rd3 {[%emt 0:00:40]} Ke6 {[%emt 0:01:44]} 54. Nd1 {[%emt 0:00:53]} Ng4 {[%emt 0:00:32]} 55. Rb3 {[%emt 0:01:31]} Bd4 {[%emt 0:04:33]} 56. Nc3 {[%emt 0:01:15]} Ne5 {[%emt 0:00:03]} 57. Ne4 {[%emt 0:01:52]} g4 {[%emt 0:00:04]} 58. Rb8 {[%emt 0:00:32]} Nf3 {[%emt 0:01:14]} 59. Rc8 {[%emt 0:00:38]} Ra3 {[%emt 0:02:24]} 60. Nc5+ {[%emt 0:01:03]} Bxc5 {[%emt 0:01:03]} 61. Rxc5 {[%emt 0:00:04]} Nd4 {[%emt 0:00:08]} 62. Rb2 {[%emt 0:00:35]} e2 {[%emt 0:00:02]} 63. Rc1 {[%emt 0:00:12]} Kd5 {[%emt 0:01:41]} 64. Kf2 {[%emt 0:01:15]} Rf3+ {[%emt 0:00:31]} 65. Kg2 {[%emt 0:00:04]} Ke4 {[%emt 0:04:19]} 66. Rb7 {[%emt 0:00:59]} Ke3 {[%emt 0:00:16]} 0-1

[Event "Srdja Dragasevic Memorial-A 2024"]
[Site "Cetinje"]
[Date "2024.06.23"]
[Round "1.2"]
[White "Petrov, Nikita"]
[Black "Asllani, Muhamet"]
[Result "1-0"]
[ECO "D20"]
[WhiteElo "2566"]
[BlackElo "2219"]
[Annotator "TA"]
[PlyCount "59"]
[EventDate "2024.06.23"]
[EventType "swiss"]
[EventCountry "MNE"]
[SourceTitle "playchess.com"]
[Source "ChessBase"]
[SourceQuality "1"]
[TimeControl "40/5400+30:1800+30"]

{[%evp 16,59,66,59,191,193,189,205,211,206,329,317,346,326,343,324,339,287,482,479,481,475,478,505,596,593,570,571,570,564,548,556,610,578,599,597,629,622,756,730,799,778,799,770,728,728]} 1. d4 {[%emt 0:00:03]} d5 {[%emt 0:00:48]} 2. c4 {[%emt 0:00:33]} dxc4 {[%emt 0:00:45]} 3. e4 {[%emt 0:01:39]} e5 {[%emt 0:01:50]} 4. Nf3 {[%emt 0:00:27]} exd4 {[%emt 0:00:15]} 5. Bxc4 {[%emt 0:00:34]} Bb4+ {[%emt 0:01:42]} 6. Nbd2 {[%emt 0:00:35]} Nc6 {[%emt 0:01:42]} 7. O-O {[%emt 0:00:55]} Be6 {[%emt 0:08:42]} 8. Bxe6 {[%emt 0:10:20]} fxe6 {[%emt 0:01:17]} 9. Nb3 {[%emt 0:00:42]} e5 {[%emt 0:01:22] [#]} ({Black should try} 9... Qd7 $14) 10. Nxe5 $1 $18 {[%emt 0:01:51][%mdl 512]} Nxe5 {[%emt 0:03:52]} (10... Nge7 11. Nd3) 11. Qh5+ {[%emt 0:01:21]} (11. Nxd4 $2 {is the wrong capture.} Qd7 12. Bf4 Ng6 $19) 11... Ng6 {[%emt 0:08:56] aiming for ...Qd7. White is clearly better.} 12. Qb5+ {[%emt 0:00:19]} Qd7 {[%emt 0:00:09]} (12... c6 {was called for.} 13. Qxb4 Qd7 14. Nxd4 a5) 13. Qxb7 {[%emt 0:06:14]} ({Weaker is} 13. Qxb4 b6 $16) 13... Rd8 {[%emt 0:00:19]} 14. Qxb4 {[%emt 0:00:08]} Nf6 {[%emt 0:00:32]} 15. f3 {[%emt 0:06:39]} Qd6 {[%emt 0:06:19]} 16. Qxd6 {[%emt 0:01:21]} Rxd6 {[%emt 0:00:33] [#]} (16... cxd6 17. Nxd4 Rd7) 17. e5 $1 {[%emt 0:01:23][%mdl 512] White is clearly winning.} Nxe5 {[%emt 0:00:29]} 18. Re1 {[%emt 0:01:24]} Re6 {[%emt 0:00:04][%cal Oe5f3] Threatens to win with ...Nxf3+!} 19. Bf4 {[%emt 0:00:10]} (19. Nxd4 Re7 20. b3 Nd3 21. Rxe7+ Kxe7 $14) 19... Nd3 {[%emt 0:02:22]} 20. Rxe6+ {[%emt 0:00:09]} Kf7 {[%emt 0:00:02] [#]} 21. Rxf6+ {[%emt 0:01:00]} gxf6 {[%emt 0:00:21]} 22. Bxc7 {[%emt 0:00:09]} Rc8 {[%emt 0:00:24]} 23. Bg3 {[%emt 0:00:22]} Rc2 {[%emt 0:00:26]} 24. Nxd4 {[%emt 0:00:48]} Rxb2 {[%emt 0:00:04]} 25. a4 {[%emt 0:00:39][%cal Ba2a4,Ba4a5,Ba5a6][%mdl 32]} h5 {[%emt 0:01:25]} 26. a5 {[%emt 0:02:47]} h4 {[%emt 0:00:23]} 27. Bxh4 {[%emt 0:00:47]} Rb4 {[%emt 0:00:23] [#]} 28. Nc6 $1 {[%emt 0:02:42]} Rxh4 {[%emt 0:00:23]} 29. Nxa7 {[%emt 0:00:28]} Nc5 {[%emt 0:00:51]} 30. a6 {[%emt 0:00:30] White took control after the opening.   Weighted Error Value: White=0.06 (flawless) /Black=0.46.  Mistake:       	---       	Black=2      OK:         	White=9     	Black=5      Best:        	White=3     	---        Brilliant:      	White=1     	---} 1-0

[Event "Srdja Dragasevic Memorial-A 2024"]
[Site "Cetinje"]
[Date "2024.06.23"]
[Round "1.3"]
[White "Pogorelskikh, Sofia"]
[Black "Djukic, Nikola"]
[Result "1/2-1/2"]
[ECO "B48"]
[WhiteElo "2216"]
[BlackElo "2532"]
[Annotator "TA"]
[PlyCount "109"]
[EventDate "2024.06.23"]
[EventType "swiss"]
[EventCountry "MNE"]
[SourceTitle "playchess.com"]
[Source "ChessBase"]
[SourceQuality "1"]
[TimeControl "40/5400+30:1800+30"]

{[%evp 11,109,31,47,39,37,27,25,20,50,37,33,-6,17,-3,-8,-16,-18,-14,-15,-31,-11,-14,-26,-35,0,-21,0,-6,31,40,31,23,62,56,78,-46,-39,-35,-32,-51,-45,-37,-32,-18,-24,0,0,0,37,8,33,28,327,304,293,82,101,0,0,0,0,0,0,0,0,0,0,0,0,0,0,0,0,0,0,0,0,0,27,23,23,18,13,11,31,0,20,0,0,0,0,0,0,0,0,0,0,-2,-2,-2]} 1. e4 {[%emt 0:00:06]} c5 {[%emt 0:00:06]} 2. Nf3 {[%emt 0:00:17]} e6 {[%emt 0:00:07]} 3. d4 {[%emt 0:00:42]} cxd4 {[%emt 0:00:07]} 4. Nxd4 {[%emt 0:00:10]} Nc6 {[%emt 0:00:08]} 5. Nc3 {[%emt 0:01:02]} Qc7 {[%emt 0:00:13]} 6. Be3 {[%emt 0:00:48]} a6 {[%emt 0:00:14]} 7. Qf3 {[%emt 0:00:54]} b5 {[%emt 0:01:06]} 8. Nxc6 {[%emt 0:02:33]} Qxc6 {[%emt 0:00:26]} 9. Bd3 {[%emt 0:00:41] White has an edge.} b4 {[%emt 0:02:39]} 10. Ne2 {[%emt 0:01:09]} Nf6 {[%emt 0:01:54]} 11. Nd4 {[%emt 0:09:28]} Qc7 {[%emt 0:01:28]} 12. O-O {[%emt 0:09:49]} Bb7 {[%emt 0:01:56]} 13. Bf4 {[%emt 0:10:43] Wards off Qe5} Bd6 {[%emt 0:07:12]} 14. Bxd6 {[%emt 0:02:10]} Qxd6 {[%emt 0:00:06]} 15. e5 {[%emt 0:17:29]} Qb6 {[%emt 0:04:10]} ({Reject} 15... Qxd4 $6 16. Qxb7 Qd5 17. Bxa6 Qxb7 18. Bxb7 $16) (15... Bxf3 {simplifies} 16. exd6 Be4 17. a3 Bxd3 18. cxd3 Nd5) 16. Qf4 {[%emt 0:03:39]} Nd5 {[%emt 0:00:23]} 17. Qg4 {[%emt 0:06:51]} f5 {[%emt 0:17:01]} 18. Qh4 {[%emt 0:05:48]} (18. Qxg7 O-O-O 19. Nxf5 exf5 $19) 18... Ne7 {[%emt 0:05:49][%cal Bd5e7,Be7g6,Bg6e5][%mdl 32] ...Ng6 would now be deadly.} 19. Be2 {[%emt 0:03:37] [#]} g5 $1 {[%emt 0:09:47]} 20. Qh5+ {[%emt 0:02:05]} Ng6 {[%emt 0:00:07]} 21. Rad1 {[%emt 0:08:31][%cal Od4f5] Black must now prevent Nxf5!} O-O-O {[%emt 0:03:03][%cal Ob7g2] Strongly threatening ...Bxg2!} 22. Qxg5 {[%emt 0:04:44]} Rhg8 {[%emt 0:04:43] [#]} 23. Nf3 {[%emt 0:03:29] [#]} ({White should play} 23. f3 $1 $16) 23... Nxe5 $1 $15 {[%emt 0:06:20]} 24. Qf4 {[%emt 0:00:09]} d6 {[%emt 0:00:42]} 25. h3 {[%emt 0:06:06]} Rd7 {[%emt 0:11:28] Hoping for ...Rdg7.} 26. Kh2 $1 {[%emt 0:00:00]} Rc7 {[%emt 0:03:31]} 27. c3 {[%emt 0:00:00]} bxc3 {[%emt 0:04:54]} 28. bxc3 {[%emt 0:00:00]} Rxc3 {[%emt 0:08:36][%cal Og8g2]} 29. Rb1 {[%emt 0:00:34]} Qc7 {[%emt 0:02:07]} 30. Rfc1 {[%emt 0:00:29]} (30. Qh6 {looks sharper.} Qg7 31. Qxe6+ Nd7 32. Rg1) 30... Bxf3 {[%emt 0:02:37]} 31. gxf3 {[%emt 0:00:43]} Rc5 {[%emt 0:01:19][%mdl 8192]} (31... Kd7 $11) 32. Bxa6+ $18 {[%emt 0:00:48]} Kd8 {[%emt 0:00:47]} 33. Rxc5 $2 {[%emt 0:00:33]} (33. Kh1 $18 {is the precise move to win.} Ng6 34. Qh6 Rxc1+ 35. Rxc1) 33... dxc5 $16 {[%emt 0:00:46]} 34. Rd1+ {[%emt 0:00:25]} (34. Qh4+ $16 Ke8 35. Kh1 (35. Bb5+ Kf7 $11)) 34... Ke7 $11 {[%emt 0:00:43]} 35. Qh4+ {[%emt 0:00:24]} Kf7 {[%emt 0:00:18]} 36. Qxh7+ {[%emt 0:00:25]} Rg7 {[%emt 0:00:05]} 37. Qh5+ {[%emt 0:00:12]} Ng6+ {[%emt 0:01:06]} 38. Kh1 $1 {[%emt 0:00:10] Active counter play!} c4 {[%emt 0:00:44]} 39. Bb5 {[%emt 0:00:31] Dodges Qc6} Kf6 {[%emt 0:00:28]} 40. h4 {[%emt 0:00:00]} Qf4 {[%emt 0:00:00][%cal Og6e5] Dodges Qg5+. And now ...Ne5! would win.} 41. Qg5+ $1 {[%emt 0:09:11]} Qxg5 {[%emt 0:00:49]} 42. hxg5+ {[%emt 0:00:06]} Kxg5 {[%emt 0:00:04] Threatens to win with ...c3.} 43. Bxc4 {[%emt 0:01:18][%mdl 4096] Endgame. KRB-KRN} Rh7+ {[%emt 0:06:43]} 44. Kg1 {[%emt 0:00:58]} Nf4 {[%emt 0:00:06]} 45. a4 {[%emt 0:03:35]} Rc7 {[%emt 0:00:51]} 46. Bf1 {[%emt 0:09:28]} Ra7 {[%emt 0:07:37]} 47. Bb5 {[%emt 0:01:02]} Nd5 {[%emt 0:02:01]} 48. Rd4 {[%emt 0:03:20]} Kf6 {[%emt 0:01:26] The position is equal.} 49. f4 {[%emt 0:01:27]} Nc3 {[%emt 0:01:09]} 50. Kg2 {[%emt 0:01:21]} Rg7+ {[%emt 0:05:45]} 51. Kf3 {[%emt 0:01:11]} Rb7 {[%emt 0:00:06]} 52. Bc6 {[%emt 0:02:11]} Rc7 {[%emt 0:00:25]} 53. Rc4 {[%emt 0:02:42]} Nxa4 {[%emt 0:03:04]} 54. Rxa4 {[%emt 0:00:31]} Rxc6 {[%emt 0:00:07]} 55. Ra3 {[%emt 0:00:07] Weighted Error Value: White=0.19 (very precise) /Black=0.16 (very precise) .  Loses game:     	---       	Black=1      Missed win:     	White=1     	---        Mistake:       	White=2     	---        Inaccurate:     	White=3     	Black=6      OK:         	White=15    	Black=21     Best:        	White=1     	Black=3      Strong:       	White=3     	---        Brilliant:      	---       	Black=1} 1/2-1/2

[Event "Srdja Dragasevic Memorial-A 2024"]
[Site "Cetinje"]
[Date "2024.06.23"]
[Round "1.4"]
[White "Saraci, Nderim"]
[Black "Pobor, Milo"]
[Result "1-0"]
[ECO "B47"]
[WhiteElo "2449"]
[BlackElo "2209"]
[Annotator "TA"]
[PlyCount "69"]
[EventDate "2024.06.23"]
[EventType "swiss"]
[EventCountry "MNE"]
[SourceTitle "playchess.com"]
[Source "ChessBase"]
[SourceQuality "1"]
[TimeControl "40/5400+30:1800+30"]

{[%evp 12,69,41,19,20,19,42,9,7,3,41,11,35,14,52,17,25,7,11,-20,-15,-45,41,0,0,0,11,2,7,18,14,0,0,-23,-27,-21,-33,-36,0,0,0,-15,-17,-31,40,36,37,34,170,108,109,108,344,309,370,168,525,518,577,568]} 1. Nf3 {[%emt 0:00:14]} c5 {[%emt 0:03:42]} 2. e4 {[%emt 0:02:19]} Nc6 {[%emt 0:01:47]} 3. d4 {[%emt 0:01:42]} cxd4 {[%emt 0:00:13]} 4. Nxd4 {[%emt 0:00:09]} e6 {[%emt 0:00:59]} 5. Nc3 {[%emt 0:02:10]} Qc7 {[%emt 0:00:24]} 6. g3 {[%emt 0:04:35]} Nf6 {[%emt 0:04:07]} 7. Bg2 {[%emt 0:10:06]} Nxd4 {[%emt 0:03:24]} 8. Qxd4 {[%emt 0:00:08]} Bc5 {[%emt 0:00:25]} 9. Qd1 {[%emt 0:07:26]} a6 {[%emt 0:01:13] The position is equal.} 10. O-O {[%emt 0:01:47]} h5 {[%emt 0:06:20]} 11. Bf4 {[%emt 0:21:43]} d6 {[%emt 0:01:57]} 12. h3 {[%emt 0:09:57]} Bd7 {[%emt 0:17:14]} 13. Qd2 {[%emt 0:01:52]} Rc8 {[%emt 0:01:03]} 14. Rad1 {[%emt 0:03:12][%cal Rf4d6]} e5 {[%emt 0:11:23]} 15. Be3 {[%emt 0:06:19]} (15. Bg5 $5) 15... Bb4 {[%emt 0:03:01][%cal Rb4c3]} 16. Bg5 {[%emt 0:05:07]} Be6 {[%emt 0:10:46]} ({Black should play} 16... Bxc3 $15 17. bxc3 Bb5) 17. a3 {[%emt 0:04:48]} (17. Nb5 $5 Bxd2 18. Nxc7+ Rxc7 19. Rxd2 $11) 17... Bxc3 {[%emt 0:04:51]} (17... Ba5 {feels hotter.} 18. Bxf6 Bxc3 19. Qg5 gxf6 20. Qxf6 Rg8) 18. bxc3 {[%emt 0:00:07]} Nd7 {[%emt 0:06:26]} 19. Qxd6 {[%emt 0:04:33]} Qxd6 {[%emt 0:00:07]} 20. Rxd6 {[%emt 0:00:05]} Rxc3 {[%emt 0:00:11]} 21. Rfd1 {[%emt 0:02:56]} Rxc2 {[%emt 0:03:01]} 22. f4 {[%emt 0:01:48]} Rc7 {[%emt 0:01:23]} 23. Bf1 {[%emt 0:04:36]} Bb3 {[%emt 0:05:12]} 24. Rb1 {[%emt 0:01:14]} Ba4 {[%emt 0:02:06]} 25. fxe5 {[%emt 0:00:59] [#] And now e6 would win.} O-O {[%emt 0:02:20][%cal Oc7c3]} 26. e6 {[%emt 0:00:55]} fxe6 {[%emt 0:01:54]} 27. Rxe6 {[%emt 0:00:17]} Nc5 {[%emt 0:00:23]} (27... Rc3 $15 28. Bf4 Nc5) 28. Re7 $14 {[%emt 0:00:19]} Rc6 {[%emt 0:02:00]} 29. Bc4+ {[%emt 0:02:02]} Kh8 {[%emt 0:00:10] [#]} (29... Kh7 $14) 30. Bd5 {[%emt 0:00:46] A strong pair of Bishops.} (30. Bf4 $1 $18) 30... Rg6 $16 {[%emt 0:00:56]} 31. h4 $36 {[%emt 0:00:08][%mdl 2048] g4 is the strong threat. Black is under strong pressure. White is more active. Black is weak on the dark squares} b5 $2 {[%emt 0:01:09]} (31... Bc6 $16 {was called for.}) 32. Rc1 $18 {[%emt 0:01:05]} Nd3 {[%emt 0:00:51]} 33. Rf1 {[%emt 0:00:54]} (33. Rc3 $142 Ne1 34. e5) 33... Rc8 $2 {[%emt 0:01:50]} (33... Rxf1+ {is tougher.} 34. Kxf1 b4) 34. e5 {[%emt 0:00:21]} Nc5 {[%emt 0:00:57]} 35. Rc1 {[%emt 0:00:35] Weighted Error Value: White=0.24 (precise) /Black=0.47.  Loses game:     	---       	Black=1      Mistake:       	White=2     	Black=4      Inaccurate:     	White=6     	Black=3      OK:         	White=7     	Black=13     Best:        	White=2     	Black=1} ({Not} 35. e6 Bb3 36. Bxb3 Nxb3 $16) 1-0

[Event "Srdja Dragasevic Memorial-A 2024"]
[Site "Cetinje"]
[Date "2024.06.23"]
[Round "1.5"]
[White "Pogorelskikh, Sergey"]
[Black "Milanovic, Danilo"]
[Result "0-1"]
[ECO "B01"]
[WhiteElo "2196"]
[BlackElo "2438"]
[Annotator "TA"]
[PlyCount "76"]
[EventDate "2024.06.23"]
[EventType "swiss"]
[EventCountry "MNE"]
[SourceTitle "playchess.com"]
[Source "ChessBase"]
[SourceQuality "1"]
[TimeControl "40/5400+30:1800+30"]

{[%evp 9,76,46,63,58,60,52,79,20,12,1,33,40,37,35,85,63,56,51,66,50,81,82,84,98,85,55,46,30,49,45,47,45,44,42,91,83,118,109,102,102,112,127,180,147,155,131,204,182,195,202,169,60,96,33,28,34,40,33,39,29,21,0,0,0,0,8,14,-331,-322]} 1. e4 {[%emt 0:00:05]} d5 {[%emt 0:00:07]} 2. exd5 {[%emt 0:00:09]} Qxd5 {[%emt 0:00:09]} 3. Nc3 {[%emt 0:00:10]} Qd6 {[%emt 0:00:09]} 4. d4 {[%emt 0:00:09]} Nf6 {[%emt 0:00:14]} 5. Nf3 {[%emt 0:00:14]} g6 {[%emt 0:00:21]} 6. Nb5 {[%emt 0:03:14]} Qb6 {[%emt 0:03:13]} 7. a4 {[%emt 0:05:04]} c6 {[%emt 0:04:49]} 8. Na3 {[%emt 0:02:48]} ({White should try} 8. a5 $16 Qd8 9. Nc3) 8... Bg7 $11 {[%emt 0:03:25]} 9. Nc4 {[%emt 0:02:17]} Qd8 {[%emt 0:01:06][%cal Oc6c5] Black is weak on the dark squares} 10. Be2 {[%emt 0:01:39]} O-O {[%emt 0:01:33]} 11. O-O {[%emt 0:00:27]} Nbd7 {[%emt 0:06:01]} (11... Qc7 $14) 12. a5 {[%emt 0:07:08]} Nd5 {[%emt 0:01:42]} 13. Re1 {[%emt 0:01:07]} c5 {[%emt 0:23:37]} 14. c3 {[%emt 0:01:45]} h6 {[%emt 0:24:00]} 15. Bf1 {[%emt 0:03:37]} cxd4 {[%emt 0:02:33]} 16. Nxd4 {[%emt 0:01:01][%cal Oa5a6]} Nc5 {[%emt 0:00:23]} 17. a6 {[%emt 0:19:43]} e6 {[%emt 0:03:06]} 18. axb7 {[%emt 0:00:55]} Bxb7 {[%emt 0:00:09]} 19. Na5 {[%emt 0:00:46]} Qb6 {[%emt 0:03:34]} 20. Ndb3 {[%emt 0:06:21]} Nxb3 {[%emt 0:01:51]} 21. Qxb3 {[%emt 0:01:01]} Ba6 {[%emt 0:03:23]} (21... Rfc8 $14 {is superior.}) 22. c4 $16 {[%emt 0:13:09]} Ne7 {[%emt 0:01:05]} 23. Qa3 {[%emt 0:06:07]} Qc7 {[%emt 0:00:57]} 24. Bd2 {[%emt 0:01:59]} Rfe8 {[%emt 0:10:15]} 25. Bc3 {[%emt 0:00:53]} e5 {[%emt 0:00:09] [#]} (25... Bxc3 $16 26. Qxc3 Reb8) 26. b4 $1 $18 {[%emt 0:00:49][%cal Bb2b4,Bb4b5][%mdl 32]} Bc8 {[%emt 0:00:13]} 27. g3 {[%emt 0:05:19]} Bd7 {[%emt 0:01:26] [#]} (27... Rb8 $16 28. b5 a6) 28. b5 $1 {[%emt 0:02:50]} Rac8 {[%emt 0:00:32][%cal Od7b5]} 29. Nb3 {[%emt 0:04:56]} Nf5 {[%emt 0:01:18]} 30. Rad1 {[%emt 0:03:01] Wards off Nd6} (30. Qxa7 Qxa7 31. Rxa7 Bxb5 $16) (30. Nd2 $18) 30... Be6 $1 $14 {[%emt 0:00:48]} 31. Na5 {[%emt 0:01:41]} (31. Bb4 $16) 31... Nd4 {[%emt 0:03:11]} 32. Bxd4 exd4 {[%emt 0:00:01]} 33. Nc6 {[%emt 0:02:10]} a6 {[%emt 0:01:03]} 34. Nxd4 {[%emt 0:02:32]} (34. Qxa6 $2 {too greedy.} Ra8 35. Nb4 (35. Rxe6 $2 fxe6 $19) 35... Rxa6 $19) 34... Bg4 {[%emt 0:00:04] A strong pair of Bishops.} 35. Nf3 {[%emt 0:01:48]} axb5 {[%emt 0:00:24]} 36. cxb5 {[%emt 0:00:17]} Qb7 $1 {[%emt 0:00:23]} 37. Rxe8+ {[%emt 0:00:37]} Rxe8 {[%emt 0:00:04]} 38. Re1 $2 {[%emt 0:00:12][%mdl 8192]} (38. Kg2 $11) 38... Ra8 {[%emt 0:00:08] What a bad dream for White.   Weighted Error Value: White=0.31/Black=0.12 (very precise) .  Loses game:     	White=1     	---        Mistake:       	White=3     	Black=4      Inaccurate:     	White=1     	Black=4      OK:         	White=11    	Black=12     Best:        	White=1     	Black=2      Strong:       	---       	Black=2} (38... Qxf3 $2 {loses.} 39. Rxe8+ Kh7 40. Qxf3 Bxf3 41. Bc4 $18) 0-1